bitfinex-derivatives/quotes_SOLF0:USTF0_20230901
["timestamp","ask_amount","ask_price","bid_price","bid_amount"]
[1693592046811,4.31096375,19.216,19.205,125.68]
[1693592052314,112.97,19.215,19.207,112.97]
[1693592053909,4.31111206,19.214,19.207,112.97]
[1693592054518,112.97,19.212,19.204,112.97]
[1693592054819,112.97,19.209,19.201,112.97]
[1693592056718,20.5951,19.211,19.203,112.97]
[1693592057121,112.97,19.212,19.203,112.97]
[1693592060525,112.97,19.208,19.2,112.97]
[1693592060717,112.97,19.208,19.201,0.45454546]
[1693592063828,21.9018,19.211,19.201,0.45454546]
[1693592064024,112.97,19.209,19.2,112.97]
[1693592064220,112.97,19.209,19.201,0.45454546]
[1693592064825,112.97,19.205,19.196,112.97]
[1693592066221,22.1123,19.208,19.188,5.48]
[1693592066427,112.97,19.198,19.189,280.66860393]
[1693592066621,112.97,19.198,19.19,0.45454546]
[1693592067324,125.76,19.2,19.19,0.45454546]
[1693592067522,125.76,19.2,19.19,280.66860393]
[1693592067719,125.76,19.2,19.191,280.21405847]
[1693592067927,125.76,19.2,19.192,280.21405847]
[1693592068126,125.76,19.196,19.193,280.21405847]
[1693592068323,125.76,19.196,19.194,280.21405847]
[1693592068523,125.76,19.196,19.183,125.76]
[1693592068720,125.76,19.196,19.184,280.29668088]
[1693592069229,15.62,19.188,19.184,280.29668088]
[1693592069429,125.76,19.187,19.179,280.75122634]
[1693592069627,125.76,19.187,19.18,0.45454546]
[1693592069828,125.76,19.187,19.176,280.7978471]
[1693592070025,125.76,19.191,19.178,131.24]
[1693592070231,125.76,19.191,19.179,280.7978471]
[1693592070432,125.76,19.191,19.18,0.45454546]
[1693592071632,125.76,19.188,19.18,0.45454546]
[1693592071833,125.76,19.188,19.18,280.7978471]
[1693592072132,125.76,19.188,19.181,280.34330164]
[1693592072331,125.76,19.188,19.182,280.34330164]
[1693592072527,125.76,19.188,19.183,280.34330164]
[1693592072735,125.76,19.188,19.184,280.34330164]
[1693592073036,125.76,19.188,19.185,280.34330164]
[1693592073327,125.76,19.188,19.176,125.76]
[1693592073328,125.76,19.188,19.186,280.34330164]
[1693592073528,125.76,19.188,19.187,280.34330164]
[1693592073722,125.76,19.188,19.178,5.48]
[1693592073926,125.76,19.188,19.179,280.7978471]
[1693592074127,125.76,19.188,19.18,280.7978471]
[1693592074323,125.76,19.188,19.181,280.34330164]
[1693592074528,125.76,19.188,19.182,280.34330164]
[1693592074728,125.76,19.188,19.183,280.34330164]
[1693592074928,125.76,19.188,19.184,280.34330164]
[1693592075130,125.76,19.188,19.185,280.34330164]
[1693592075432,125.76,19.188,19.186,280.34330164]
[1693592075628,125.76,19.188,19.178,5.48]
[1693592075833,125.76,19.188,19.179,280.7972931]
[1693592076033,125.76,19.188,19.18,280.7972931]
[1693592076228,125.76,19.188,19.182,5.48]
[1693592076429,125.76,19.188,19.183,280.34274764]
[1693592076625,125.76,19.188,19.184,280.34274764]
[1693592076830,125.76,19.188,19.185,280.34274764]
[1693592077030,125.76,19.188,19.179,0.45454546]
[1693592077231,125.76,19.188,19.178,5.48]
[1693592077534,125.76,19.188,19.184,0.25155196]
[1693592077936,125.76,19.187,19.184,0.25155196]
[1693592078836,125.76,19.187,19.184,280.59444153]
[1693592079135,125.76,19.187,19.184,0.25155196]
[1693592079735,125.76,19.187,19.184,280.59591441]
[1693592079935,125.76,19.187,19.184,0.25155196]
[1693592085543,125.76,19.189,19.184,0.25155196]
[1693592086636,125.76,19.189,19.182,5.48]
[1693592086844,125.76,19.189,19.183,280.3454248]
[1693592087145,125.76,19.189,19.184,280.3454248]
[1693592087343,113.27,19.186,19.185,280.3454248]
[1693592087746,113.27,19.186,19.179,0.45454546]
[1693592087946,113.27,19.186,19.179,280.79930486]
[1693592088145,113.27,19.186,19.18,280.3447594]
[1693592088445,113.27,19.186,19.182,5.48]
[1693592088646,113.27,19.186,19.183,280.3447594]
[1693592088848,113.27,19.186,19.184,280.3447594]
[1693592089039,113.27,19.186,19.179,0.45454546]
[1693592089849,113.27,19.186,19.179,280.79779681]
[1693592090047,113.27,19.186,19.18,280.34325135]
[1693592090247,113.27,19.186,19.181,280.34325135]
[1693592090449,113.27,19.186,19.182,280.34325135]
[1693592090749,113.27,19.186,19.183,280.34325135]
[1693592090950,113.27,19.186,19.179,0.45454546]
[1693592091152,113.27,19.186,19.184,0.25155196]
[1693592092149,113.27,19.185,19.184,0.25155196]
[1693592101956,113.27,19.187,19.184,0.25155196]
[1693592103253,113.27,19.185,19.184,0.25155196]
[1693592107261,125.94,19.185,19.184,0.25155196]
[1693592107756,125.94,19.185,19.18,0.31450289]
[1693592108063,503.76,19.189,19.176,0.37747903]
[1693592108064,15.64,19.18,19.176,0.37747903]
[1693592108263,125.94,19.178,19.176,0.37747903]
[1693592109157,125.94,19.178,19.173,280.47232605]
[1693592109359,125.94,19.174,19.172,0.44048038]
[1693592116365,125.94,19.174,19.17,280.47402794]
[1693592116564,125.94,19.174,19.172,5.5]
[1693592116760,125.94,19.174,19.173,280.47402794]
[1693592116960,125.94,19.174,19.168,280.47402794]
[1693592117165,125.94,19.178,19.169,280.47402794]
[1693592117464,125.94,19.178,19.17,280.47402794]
[1693592117665,125.94,19.178,19.172,5.5]
[1693592117866,125.94,19.178,19.174,5.5]
[1693592118167,125.94,19.178,19.167,5.5]
[1693592118465,125.94,19.178,19.168,280.46075175]
[1693592118666,125.94,19.178,19.176,0.06291575]
[1693592119369,125.94,19.181,19.176,0.06291575]
[1693592121559,125.94,19.184,19.176,0.06291575]
[1693592121766,125.94,19.187,19.176,0.06291575]
[1693592122164,125.94,19.187,19.176,280.97821296]
[1693592122362,125.94,19.19,19.178,5.5]
[1693592122568,125.94,19.19,19.179,280.46075175]
[1693592124778,125.94,19.19,19.179,300.44035175]
[1693592125076,125.94,19.19,19.18,280.46075175]
[1693592125773,125.94,19.193,19.182,505.5]
[1693592125975,125.94,19.197,19.184,125.94]
[1693592126175,125.94,19.197,19.186,5.5]
[1693592126372,125.94,19.197,19.186,0.45454546]
[1693592126573,125.94,19.197,19.186,5.5]
[1693592126779,125.94,19.197,19.188,5.5]
[1693592126976,125.94,19.197,19.189,280.2761732]
[1693592127181,125.94,19.197,19.188,5.5]
[1693592127374,125.94,19.197,19.189,280.27410429]
[1693592127574,125.94,19.197,19.186,5.5]
[1693592127782,125.94,19.197,19.188,5.5]
[1693592128080,125.94,19.197,19.189,280.27400959]
[1693592128275,125.94,19.197,19.19,280.27453534]
[1693592128475,125.94,19.197,19.186,5.5]
[1693592128676,125.94,19.197,19.188,5.5]
[1693592128877,125.94,19.197,19.189,280.27581569]
[1693592129071,125.94,19.197,19.186,5.5]
[1693592129278,125.94,19.197,19.188,5.5]
[1693592129478,125.94,19.197,19.189,280.27560042]
[1693592129679,125.94,19.197,19.186,5.5]
[1693592129984,125.94,19.193,19.188,5.5]
[1693592130183,125.94,19.193,19.189,280.27612967]
[1693592130382,125.94,19.193,19.19,280.27612967]
[1693592130682,125.94,19.193,19.183,0.45454546]
[1693592130979,125.94,19.193,19.183,280.73024994]
[1693592131182,125.94,19.193,19.184,0.45454546]
[1693592142192,125.94,19.19,19.183,280.27570448]
[1693592142483,125.94,19.19,19.178,5.5]
[1693592142484,125.94,19.19,19.184,280.27570448]
[1693592142784,125.94,19.19,19.185,280.27570448]
[1693592142989,125.94,19.19,19.186,280.27570448]
[1693592143180,125.94,19.19,19.187,280.27570448]
[1693592143383,125.94,19.19,19.178,5.5]
[1693592143587,125.94,19.19,19.179,280.34162754]
[1693592146788,125.94,19.187,19.179,280.34162754]
[1693592152488,125.94,19.187,19.18,280.34162754]
[1693592152685,125.94,19.187,19.181,280.34162754]
[1693592152888,125.94,19.187,19.182,280.34162754]
[1693592153090,125.94,19.187,19.183,280.34162754]
[1693592153291,125.94,19.187,19.184,280.34162754]
[1693592153487,125.94,19.187,19.185,280.34162754]
[1693592153691,125.94,19.187,19.186,280.34162754]
[1693592153995,125.94,19.187,19.178,0.06290848]
[1693592154396,125.94,19.187,19.178,5.56290848]
[1693592154590,125.94,19.187,19.179,280.34162754]
[1693592154791,125.94,19.187,19.18,280.34162754]
[1693592155091,125.94,19.187,19.181,280.34162754]
[1693592155292,125.94,19.187,19.182,280.34162754]
[1693592155489,125.94,19.187,19.183,280.34162754]
[1693592155787,125.94,19.187,19.184,280.34162754]
[1693592155988,125.94,19.187,19.185,280.34162754]
[1693592156197,125.94,19.187,19.186,280.34162754]
[1693592156493,125.94,19.187,19.178,0.06290848]
[1693592158398,125.94,19.187,19.178,5.56290848]
[1693592158695,125.94,19.187,19.179,280.34547879]
[1693592158891,20.4772,19.186,19.18,280.34547879]
[1693592159200,125.94,19.187,19.182,5.5]
[1693592159398,125.94,19.187,19.183,280.34547879]
[1693592159597,125.94,19.187,19.184,280.34547879]
[1693592159798,125.94,19.187,19.186,5.5]
[1693592160003,125.94,19.187,19.186,280.34547879]
[1693592160692,125.94,19.187,19.178,5.56290848]
[1693592160896,125.94,19.187,19.179,280.34547879]
[1693592161198,125.94,19.187,19.18,280.34547879]
[1693592161398,125.94,19.187,19.182,5.5]
[1693592161589,125.94,19.187,19.181,280.34547879]
[1693592161590,125.94,19.187,19.183,280.34547879]
[1693592161794,125.94,19.187,19.184,280.34547879]
[1693592161997,125.94,19.187,19.186,5.5]
[1693592162197,125.94,19.187,19.186,280.34547879]
[1693592162696,125.94,19.187,19.179,280.34547879]
[1693592162895,125.94,19.187,19.18,280.34547879]
[1693592163197,125.94,19.187,19.182,5.5]
[1693592163399,125.94,19.187,19.183,280.34547879]
[1693592163598,125.94,19.191,19.184,280.34547879]
[1693592163794,125.94,19.191,19.186,5.5]
[1693592164101,125.94,19.191,19.187,280.34547879]
[1693592164399,125.94,19.191,19.188,280.34547879]
[1693592164595,125.94,19.191,19.179,125.94]
[1693592164796,125.94,19.191,19.18,280.34357844]
[1693592170097,125.94,19.189,19.18,280.34357844]
[1693592170302,125.94,19.189,19.182,5.5]
[1693592170303,15.64,19.188,19.182,5.5]
[1693592170495,15.64,19.188,19.183,280.34357844]
[1693592170697,15.64,19.188,19.184,280.34357844]
[1693592170897,15.64,19.188,19.185,280.34357844]
[1693592171097,15.64,19.191,19.186,280.34357844]
[1693592171394,15.64,19.193,19.187,280.34357844]
[1693592171599,125.94,19.188,19.178,0.06290848]
[1693592171800,125.94,19.186,19.178,0.06290848]
[1693592173596,125.94,19.182,19.178,0.06290848]
[1693592173997,125.94,19.179,19.175,280.34679911]
[1693592174196,15.64,19.178,19.176,275.53719911]
[1693592174404,15.64,19.178,19.174,0.12584214]
[1693592174600,125.94,19.176,19.174,0.12584214]
[1693592175403,125.94,19.176,19.17,0.18880098]
[1693592176305,125.94,19.174,19.17,0.18880098]
[1693592176604,125.94,19.174,19.164,0.45454546]
[1693592177007,15.64,19.18,19.164,126.39454546]
[1693592177008,125.94,19.177,19.164,126.39454546]
[1693592177406,125.94,19.177,19.164,125.94]
[1693592177597,125.94,19.177,19.164,126.39454546]
[1693592177803,125.94,19.177,19.164,125.94]
[1693592178807,125.94,19.177,19.164,126.39454546]
[1693592179003,125.94,19.177,19.176,0.06291503]
[1693592179501,125.94,19.177,19.168,0.18882063]
[1693592184812,20.5472,19.176,19.168,0.18882063]
[1693592186518,15.64,19.173,19.168,0.18882063]
[1693592188717,15.64,19.173,19.164,0.70635668]
[1693592188915,15.65,19.17,19.164,0.25181122]
[1693592189317,29.64128451,19.172,19.157,5.51]
[1693592189514,125.94,19.162,19.157,5.51]
[1693592189720,125.94,19.164,19.157,5.51]
[1693592193623,15.65,19.163,19.156,0.37786807]
[1693592194716,125.94,19.164,19.157,5.51]
[1693592196824,15.65,19.163,19.157,5.51]
[1693592198021,125.94,19.161,19.157,5.51]
[1693592198919,125.94,19.161,19.156,0.37786807]
[1693592199119,125.94,19.158,19.156,0.37786807]
[1693592205220,125.94,19.158,19.146,5.51]
[1693592205428,125.94,19.165,19.152,131.45]
[1693592205724,125.94,19.168,19.155,125.94]
[1693592205928,125.94,19.168,19.155,126.39454546]
[1693592206128,125.94,19.168,19.155,125.94]
[1693592206429,125.94,19.168,19.155,126.39454546]
[1693592206731,125.94,19.168,19.155,125.94]
[1693592206927,125.94,19.168,19.155,126.39454546]
[1693592207130,125.94,19.168,19.155,125.94]
[1693592207423,15.65,19.178,19.161,500.0]
[1693592207630,27.74061931,19.18,19.161,500.0]
[1693592207631,125.94,19.172,19.163,5.51]
[1693592207934,125.94,19.176,19.164,0.45454546]
[1693592208629,125.94,19.173,19.164,0.45454546]
[1693592219838,15.65,19.17,19.164,0.45454546]
[1693592228245,125.94,19.166,19.16,5.51]
[1693592229454,15.65,19.165,19.159,0.06297081]
[1693592231656,125.94,19.166,19.16,5.51]
[1693592231956,125.94,19.168,19.16,5.51]
[1693592233358,15.65,19.167,19.16,5.51]
[1693592233951,15.65,19.167,19.159,0.06297081]
[1693592234151,125.94,19.165,19.16,5.51]
[1693592234463,125.94,19.168,19.16,5.51]
[1693592235559,125.94,19.168,19.157,5.51]
[1693592237964,125.94,19.168,19.16,5.51]
[1693592245465,15.65,19.18,19.161,500.0]
[1693592245672,125.94,19.176,19.164,125.94]
[1693592246059,15.65,19.173,19.163,5.96454546]
[1693592247264,15.65,19.173,19.164,280.61025567]
[1693592249171,125.94,19.175,19.164,280.61025567]
[1693592252476,113.43,19.173,19.165,113.43]
[1693592252670,113.43,19.173,19.166,280.61025567]
[1693592255375,113.43,19.173,19.167,5.51]
[1693592255577,113.43,19.173,19.168,280.61025567]
[1693592255774,113.43,19.173,19.169,280.61025567]
[1693592255973,113.43,19.173,19.17,280.61025567]
[1693592256278,113.43,19.173,19.171,280.61025567]
[1693592256475,113.43,19.173,19.172,280.61025567]
[1693592256677,113.43,19.173,19.168,280.61025567]
[1693592256877,113.43,19.173,19.169,280.61025567]
[1693592257077,113.43,19.173,19.17,280.61025567]
[1693592257277,113.43,19.173,19.171,280.61025567]
[1693592257474,113.43,19.173,19.172,280.61025567]
[1693592257877,113.43,19.173,19.167,5.51]
[1693592258079,113.43,19.173,19.168,280.61025567]
[1693592258387,113.43,19.173,19.169,280.61025567]
[1693592258577,113.43,19.173,19.17,280.61025567]
[1693592258878,113.43,19.173,19.171,280.61025567]
[1693592259075,113.43,19.173,19.172,280.61025567]
[1693592259682,113.43,19.173,19.167,5.51]
[1693592259885,113.43,19.173,19.168,280.61025567]
[1693592260072,113.43,19.173,19.169,280.61025567]
[1693592260278,113.43,19.173,19.17,280.61025567]
[1693592260474,113.43,19.173,19.171,280.61025567]
[1693592260680,113.43,19.173,19.172,280.61025567]
[1693592260979,113.43,19.173,19.167,5.51]
[1693592261279,113.43,19.173,19.168,280.61025567]
[1693592261476,113.43,19.173,19.169,280.61025567]
[1693592261672,113.43,19.173,19.17,280.61025567]
[1693592261880,113.43,19.173,19.171,280.61025567]
[1693592262072,113.43,19.174,19.172,280.61025567]
[1693592262273,113.43,19.174,19.173,280.61025567]
[1693592262274,129.08,19.174,19.173,280.61025567]
[1693592262484,15.65,19.173,19.167,5.51]
[1693592262683,15.65,19.173,19.168,280.61149989]
[1693592264082,113.43,19.174,19.168,280.61149989]
[1693592264288,113.43,19.176,19.168,394.04149989]
[1693592264587,113.43,19.179,19.172,5.51]
[1693592264776,15.65,19.202,19.162,177.38214546]
[1693592264777,113.43,19.182,19.175,113.43]
[1693592264983,113.43,19.182,19.176,280.61149989]
[1693592265381,113.43,19.185,19.178,5.51]
[1693592265583,113.43,19.185,19.179,280.61149989]
[1693592272191,113.43,19.188,19.18,113.43]
[1693592272389,113.43,19.188,19.182,5.5]
[1693592272591,113.43,19.188,19.183,280.61149989]
[1693592272792,113.43,19.188,19.184,280.61149989]
[1693592272987,113.43,19.188,19.18,113.43]
[1693592273195,113.43,19.188,19.182,5.5]
[1693592273394,113.43,19.188,19.183,280.44347689]
[1693592273595,113.43,19.188,19.18,113.43]
[1693592273797,113.43,19.188,19.182,5.5]
[1693592273997,113.43,19.188,19.183,280.44373385]
[1693592274294,113.43,19.188,19.18,113.43]
[1693592274497,113.43,19.188,19.182,5.5]
[1693592274686,113.43,19.188,19.183,280.44341518]
[1693592274886,113.43,19.188,19.18,113.43]
[1693592275092,113.43,19.188,19.182,5.5]
[1693592275294,113.43,19.188,19.183,280.44146402]
[1693592275596,113.43,19.188,19.18,113.43]
[1693592275896,113.43,19.188,19.182,5.5]
[1693592276096,113.43,19.188,19.18,113.43]
[1693592276097,113.43,19.188,19.183,280.44224916]
[1693592276399,113.43,19.188,19.18,113.43]
[1693592276596,40.96717039,19.193,19.182,5.5]
[1693592276597,113.43,19.187,19.182,5.5]
[1693592276792,113.43,19.187,19.183,280.44272838]
[1693592276997,113.43,19.187,19.179,134.0626]
[1693592277192,113.43,19.187,19.18,280.44292862]
[1693592279895,113.43,19.184,19.18,280.44292862]
[1693592282998,113.43,19.187,19.18,393.87292862]
[1693592283203,113.43,19.187,19.182,5.5]
[1693592283405,113.43,19.187,19.18,113.43]
[1693592283705,113.43,19.187,19.182,5.5]
[1693592283894,113.43,19.187,19.18,113.43]
[1693592284095,113.43,19.187,19.182,5.5]
[1693592284303,113.43,19.187,19.18,113.43]
[1693592284500,113.43,19.187,19.182,5.5]
[1693592284704,113.43,19.187,19.18,113.43]
[1693592285003,113.43,19.187,19.182,5.5]
[1693592285197,113.43,19.187,19.18,113.43]
[1693592285400,113.43,19.187,19.182,5.5]
[1693592285597,113.43,19.187,19.18,113.43]
[1693592285798,113.43,19.187,19.182,5.5]
[1693592286002,113.43,19.187,19.18,113.43]
[1693592286309,113.43,19.187,19.182,5.5]
[1693592286508,113.43,19.187,19.18,113.43]
[1693592286702,113.43,19.187,19.182,5.5]
[1693592286898,113.43,19.187,19.18,113.43]
[1693592287100,113.43,19.187,19.182,5.5]
[1693592287307,113.43,19.187,19.18,113.43]
[1693592287608,113.43,19.187,19.182,5.5]
[1693592287810,113.43,19.187,19.18,113.43]
[1693592288010,113.43,19.187,19.182,5.5]
[1693592288199,113.43,19.187,19.18,113.43]
[1693592288401,113.43,19.187,19.182,5.5]
[1693592288700,15.64,19.188,19.182,113.43]
[1693592292006,15.64,19.188,19.181,113.43]
[1693592292204,15.64,19.188,19.182,280.43526557]
[1693592292505,113.43,19.189,19.182,285.93526557]
[1693592292712,15.64,19.188,19.182,5.5]
[1693592294207,113.43,19.195,19.187,113.43]
[1693592296609,113.43,19.195,19.188,5.5]
[1693592296807,15.64,19.196,19.189,113.43]
[1693592297206,154.44719645,19.199,19.18,0.45454546]
[1693592297415,41.01719645,19.199,19.188,125.71]
[1693592297615,15.64,19.2,19.188,125.71]
[1693592297909,4.60945033,19.199,19.188,125.71]
[1693592302020,130.31945033,19.199,19.187,125.71]
[1693592302215,125.71,19.199,19.187,125.71]
[1693592302917,125.71,19.199,19.188,280.32924184]
[1693592303120,125.71,19.199,19.188,285.81924184]
[1693592303319,125.71,19.199,19.188,5.49]
[1693592308131,125.71,19.199,19.187,125.71]
[1693592308429,125.71,19.199,19.188,5.49]
[1693592312226,15.63,19.2,19.189,125.71]
[1693592316236,4.60960659,19.199,19.189,125.71]
[1693592317134,15.63,19.2,19.189,125.71]
[1693592317335,117.75960581,19.199,19.191,113.15]
[1693592317535,113.15,19.199,19.191,113.15]
[1693592318727,113.15,19.198,19.19,113.15]
[1693592321932,113.15,19.196,19.189,113.15]
[1693592331645,113.15,19.196,19.19,280.33572805]
[1693592333346,113.15,19.194,19.19,280.33572805]
[1693592333640,113.15,19.194,19.191,280.33572805]
[1693592333845,113.15,19.194,19.192,280.33572805]
[1693592334143,113.15,19.197,19.19,113.15]
[1693592334344,113.15,19.197,19.191,280.33113074]
[1693592336243,15.63,19.196,19.191,280.33113074]
[1693592340252,15.63,19.196,19.19,113.15]
[1693592340452,15.63,19.196,19.191,280.33532966]
[1693592342150,113.15,19.197,19.191,280.33532966]
[1693592342151,113.15,19.195,19.191,280.33532966]
[1693592342445,113.15,19.193,19.192,280.33532966]
[1693592343043,113.15,19.193,19.187,280.33532966]
[1693592343247,113.15,19.193,19.188,280.33532966]
[1693592343448,113.15,19.193,19.189,280.33532966]
[1693592343642,113.15,19.193,19.19,280.33532966]
[1693592343854,113.15,19.193,19.191,280.33532966]
[1693592344154,113.15,19.193,19.192,280.33532966]
[1693592344349,113.15,19.193,19.187,280.33532966]
[1693592344550,113.15,19.193,19.188,280.33532966]
[1693592344751,113.15,19.193,19.189,280.33532966]
[1693592345050,500.0,19.196,19.19,280.33532966]
[1693592345247,113.15,19.191,19.181,21.4055]
[1693592345453,113.15,19.186,19.182,280.39248265]
[1693592346257,113.15,19.183,19.182,280.39248265]
[1693592346449,69.33808615,19.183,19.182,280.39248265]
[1693592347346,69.33808615,19.183,19.182,285.88248265]
[1693592347553,113.15,19.186,19.182,285.88248265]
[1693592347756,79.8703,19.186,19.183,280.39248265]
[1693592347959,113.15,19.188,19.183,280.39248265]
[1693592348758,113.15,19.187,19.183,280.39248265]
[1693592356162,113.15,19.187,19.184,280.39248265]
[1693592356362,113.15,19.187,19.185,280.39248265]
[1693592356567,113.15,19.187,19.186,280.45536425]
[1693592356766,113.15,19.187,19.186,0.0628816]
[1693592357162,113.15,19.187,19.182,280.51827102]
[1693592357469,15.63,19.184,19.183,280.39248265]
[1693592357671,15.63,19.183,19.182,0.12578837]
[1693592357876,15.63,19.183,19.175,21.38134546]
[1693592357877,113.15,19.183,19.176,280.39277169]
[1693592358170,113.15,19.179,19.176,280.39277169]
[1693592358365,69.33798587,19.179,19.176,280.39277169]
[1693592358767,69.33798587,19.179,19.177,280.39719024]
[1693592358965,69.33798587,19.179,19.178,280.39719024]
[1693592359865,69.33798587,19.179,19.174,5.49]
[1693592360070,69.33798587,19.179,19.175,0.45454546]
[1693592360274,15.63,19.179,19.178,0.1887203]
[1693592360470,128.78,19.179,19.178,0.1887203]
[1693592360863,128.78,19.179,19.178,280.58591054]
[1693592361065,128.78,19.179,19.178,0.1887203]
[1693592361971,113.15,19.179,19.178,0.1887203]
[1693592366479,128.8,19.179,19.178,0.1887203]
[1693592368878,113.15,19.179,19.178,0.1887203]
[1693592370472,113.15,19.179,19.17,113.15]
[1693592370774,113.15,19.178,19.172,5.51]
[1693592370973,113.15,19.178,19.174,5.51]
[1693592371174,113.15,19.178,19.175,0.45454546]
[1693592371375,113.15,19.178,19.176,0.45454546]
[1693592371575,113.15,19.178,19.177,0.45454546]
[1693592371775,113.15,19.178,19.176,0.45454546]
[1693592372079,113.15,19.183,19.176,0.45454546]
[1693592374784,113.15,19.183,19.175,113.27583426]
[1693592374974,113.15,19.183,19.175,113.73037972]
[1693592375175,113.15,19.183,19.175,113.27583426]
[1693592375474,113.15,19.183,19.175,113.73037972]
[1693592378882,57.10151198,19.193,19.175,0.58037972]
[1693592378883,113.15,19.182,19.175,0.58037972]
[1693592381986,113.15,19.184,19.176,113.15]
[1693592383587,113.15,19.184,19.178,5.51]
[1693592383779,113.15,19.184,19.179,280.38466356]
[1693592383978,113.15,19.184,19.18,280.38466356]
[1693592384188,113.15,19.184,19.176,113.15]
[1693592384189,113.15,19.184,19.181,280.38466356]
[1693592384387,113.15,19.184,19.182,280.38466356]
[1693592384588,113.15,19.184,19.183,280.38466356]
[1693592385788,113.15,19.184,19.178,5.51]
[1693592385988,113.15,19.184,19.176,113.15]
[1693592385989,113.15,19.184,19.179,280.38466356]
[1693592386189,113.15,19.184,19.18,280.38466356]
[1693592386394,113.15,19.184,19.181,280.38466356]
[1693592386591,113.15,19.184,19.182,280.38466356]
[1693592386792,113.15,19.184,19.183,280.38466356]
[1693592386992,113.15,19.184,19.178,5.57290783]
[1693592387196,113.15,19.184,19.179,280.38466356]
[1693592387387,113.15,19.184,19.18,280.38466356]
[1693592387690,113.15,19.184,19.181,280.38466356]
[1693592387991,113.15,19.184,19.182,280.38466356]
[1693592388192,113.15,19.184,19.183,280.38466356]
[1693592388386,113.15,19.184,19.178,5.57290783]
[1693592388589,113.15,19.184,19.179,280.38466356]
[1693592388790,113.15,19.184,19.18,280.38466356]
[1693592388990,113.15,19.184,19.181,280.38466356]
[1693592389186,113.15,19.184,19.182,280.38466356]
[1693592389389,15.65,19.188,19.183,280.38466356]
[1693592389586,15.65,19.191,19.184,280.38466356]
[1693592389788,15.65,19.191,19.185,280.38466356]
[1693592389995,15.65,19.191,19.186,280.38466356]
[1693592390190,15.65,19.191,19.187,280.38617936]
[1693592390391,113.15,19.188,19.178,0.06290783]
[1693592390587,113.15,19.181,19.178,0.06290783]
[1693592391993,113.15,19.179,19.178,0.06290783]
[1693592392194,69.33946292,19.179,19.178,0.06290783]
[1693592395405,113.15,19.179,19.178,0.06290783]
[1693592396102,15.64,19.178,19.174,0.12584083]
[1693592396296,113.15,19.175,19.174,0.12584083]
[1693592397895,113.15,19.177,19.174,0.12584083]
[1693592401001,113.15,19.177,19.174,5.62584083]
[1693592401297,113.15,19.177,19.175,280.45420882]
[1693592401600,113.15,19.177,19.176,280.45420882]
[1693592402593,113.15,19.177,19.174,0.12584083]
[1693592402790,15.64,19.183,19.17,280.64300783]
[1693592402996,113.15,19.171,19.17,0.18879901]
[1693592406593,113.15,19.171,19.169,280.49236776]
[1693592406594,15.64,19.17,19.166,0.25178239]
[1693592406799,113.15,19.167,19.166,0.25178239]
[1693592407303,124.56,19.167,19.166,0.25178239]